fUSD/lending_fUSD_20260203
["ID","MTS","AMOUNT","RATE_DAILY","PERIOD"]
[404404869,1770111034617,-736.0,0.00010616,2]
[404404870,1770111034626,-793.0,0.00010616,2]
[404404871,1770111034637,-823.0,0.00010616,2]
[404404872,1770111034646,-3292.0,0.00010616,2]
[404404873,1770111034656,-268.69527082,0.000107,2]
[404404874,1770111034667,-500.0,0.00010712,2]
[404404875,1770111034678,-500.0,0.00010767,2]
[404404876,1770111034687,-1029.43598608,0.000108,2]
[404404877,1770111034697,-1519.04,0.00010817,2]
[404404878,1770111034707,-4300.0,0.000109,3]
[404404879,1770111034717,-150.0,0.00010959,2]
[404404880,1770111034727,-166.66,0.00010959,2]
[404404881,1770111034736,-792.55,0.00010959,2]
[404404882,1770111034746,-166.66,0.00011068,2]
[404404883,1770111034756,-174.61919141,0.00011083,2]
[404404884,1770111034767,-500.0,0.00011083,2]
[404404885,1770111034776,-500.0,0.00011083,2]
[404404886,1770111034786,-500.0,0.00011083,2]
[404404887,1770111034798,-500.0,0.00011083,2]
[404404888,1770111034808,-500.0,0.00011083,2]
[404404889,1770111034819,-500.0,0.00011083,2]
[404404890,1770111034829,-500.0,0.00011083,2]
[404404891,1770111034841,-500.0,0.00011083,2]
[404404892,1770111034852,-500.0,0.00011083,2]
[404404893,1770111034861,-500.0,0.00011083,2]
[404404894,1770111034872,-500.0,0.00011083,2]
[404404895,1770111034881,-721.12765535,0.00011083,2]
[404404896,1770111034891,-322.6107,0.00011083,2]
[404404897,1770111034901,-209.40437684,0.00011083,2]
[404404898,1770111034911,-151.0,0.00011083,2]
[404404899,1770111034921,-156.587,0.00011083,2]
[404404900,1770111034934,-162.380719,0.00011083,2]
[404404901,1770111034944,-157.73690742,0.00011083,2]
[404404902,1770111034955,-578.20924308,0.00011083,2]
[404404903,1770111034964,-1519.04,0.00011091,2]
[404404904,1770111034974,-5584.43737921,0.00011099,2]
[404404905,1770111034983,-5584.43737918,0.00011099,2]
[404404906,1770111034993,-5584.43737918,0.00011099,2]
[404404907,1770111035002,-5584.43737918,0.00011099,2]
[404404908,1770111035012,-5584.43737918,0.00011099,2]
[404404909,1770111035022,-5584.43737918,0.00011099,2]
[404404910,1770111035037,-5584.43737918,0.00011099,2]
[404404911,1770111035046,-5584.43737918,0.00011099,2]
[404404912,1770111035055,-5584.43737918,0.00011099,2]
[404404913,1770111035064,-5584.43737918,0.00011099,2]
[404404914,1770111035077,-67352.24758734,0.00011099,2]
[404404915,1770111035087,-67352.24758732,0.00011099,2]
[404404916,1770111035096,-67352.24758732,0.00011099,2]
[404404917,1770111035106,-67352.24758732,0.00011099,2]
[404404918,1770111035115,-67352.24758732,0.00011099,2]
[404404919,1770111035124,-31696.96647018,0.00011099,2]
[404404920,1770111035136,-1254.41808677,0.00011099,2]
[404404921,1770111035151,-34400.86303037,0.00011099,2]
[404404922,1770111035161,-4643.94344179,0.00011099,2]
[404404923,1770111035172,-3968.95087844,0.00011099,2]
[404404924,1770111035443,1855.57,7.878e-05,2]
[404404925,1770111035464,689.1396,7.878e-05,2]
[404404934,1770111037803,-58739.35326709,0.00011099,2]
[404404935,1770111037812,-67352.24758732,0.00011099,2]
[404404936,1770111037823,-67352.24758732,0.00011099,2]
[404404937,1770111037831,-67352.24758732,0.00011099,2]
[404404938,1770111037840,-217.15233878,0.00011138,2]
[404404939,1770111037850,-150.0134198,0.00011178,2]
[404404940,1770111037859,-166.66,0.00011178,2]
[404404941,1770111037868,-225.18697532,0.00011193,2]
[404404942,1770111037878,-233.51889341,0.00011248,2]
[404404943,1770111037888,-166.66,0.00011288,2]
[404404944,1770111037898,-1000.0,0.00011301,2]
[404404945,1770111037907,-242.15909246,0.00011303,2]
[404404946,1770111037916,-251.11897888,0.00011358,2]
[404404947,1770111037925,-1519.04,0.00011365,2]
[404404948,1770111037936,-500.0,0.0001137,2]
[404404949,1770111037945,-166.66,0.00011397,2]
[404404950,1770111037954,-260.4103811,0.00011413,2]
[404404951,1770111037964,-792.55,0.00011416,2]
[404404952,1770111037973,-270.0455652,0.00011468,2]
[404404953,1770111037982,-166.66,0.00011507,2]
[404404954,1770111037992,-280.03725112,0.00011523,2]
[404404955,1770111038003,-290.39862941,0.00011578,2]
[404404956,1770111038012,-2679.96910452,0.00011629,2]
[404404957,1770111038023,-181.08010149,0.00011631,2]
[404404958,1770111038032,-301.1433787,0.00011633,2]
[404404959,1770111038042,-1519.04,0.00011639,2]
[404404960,1770111038051,-1000.0,0.00011645,2]
[404404961,1770111038061,-1000.0,0.00011656,2]
[404404962,1770111038071,-1000.0,0.00011659,2]
[404404964,1770111038080,-1000.0,0.00011665,2]
[404404965,1770111038088,-1000.0,0.00011667,2]
[404404966,1770111038098,-150.0,0.00011673,2]
[404404968,1770111038109,-150.0,0.00011675,2]
[404404970,1770111038118,-1252.0,0.00011677,2]
[404404971,1770111038127,-1152.0,0.00011678,2]
[404404972,1770111038136,-1073.0,0.00011678,2]
[404404973,1770111038147,-4609.0,0.00011678,2]
[404404974,1770111038156,-1000.0,0.00011679,2]
[404404975,1770111038165,-150.0,0.00011681,2]
[404404976,1770111038174,-150.0,0.00011682,2]
[404404977,1770111038184,-1000.0,0.00011683,2]
[404404978,1770111038195,-157.95285948,0.00011685,2]
[404404979,1770111038204,-1000.0,0.00011685,2]
[404404980,1770111038214,-150.0,0.00011691,2]
[404404981,1770111038223,-150.0,0.00011696,2]
[404404982,1770111038233,-1000.0,0.00011703,2]
[404404983,1770111038242,-150.0,0.00011709,2]
[404404984,1770111038251,-1000.0,0.0001171,2]
[404404985,1770111038260,-500.87084133,0.00011717,2]
[404404986,1770111038270,-1000.0,0.00011721,2]
[404404987,1770111038279,-1000.0,0.00011727,2]
[404404988,1770111038289,-151.0,0.00011729,2]
[404404989,1770111038298,-1000.0,0.0001173,2]
[404404990,1770111038307,-1000.0,0.00011738,2]
[404404991,1770111038316,-1000.0,0.00011744,2]
[404404992,1770111038325,-1000.0,0.00011748,2]
[404404993,1770111038334,-1000.0,0.00011767,2]
[404404994,1770111038344,-1000.0,0.00011771,2]
[404404995,1770111038353,-1000.0,0.00011771,2]
[404404996,1770111038363,-150.0,0.00011803,2]
[404404997,1770111038372,-150.0,0.00011827,2]
[404404998,1770111038382,-150.0,0.00011828,2]
[404404999,1770111038392,-1000.0,0.00011842,2]
[404405000,1770111038401,-1000.0,0.00011848,2]
[404405001,1770111038411,-1000.0,0.00011863,2]
[404405002,1770111038420,-150.0,0.00011863,2]
[404405003,1770111038430,-1000.0,0.00011866,2]
[404405004,1770111038440,-1000.0,0.00011868,2]
[404405005,1770111038449,-792.55,0.00011872,2]
[404405006,1770111038458,-1000.0,0.00011877,2]
[404405007,1770111038467,-150.0,0.00011889,2]
[404405008,1770111038477,-183.18333192,0.00011889,2]
[404405009,1770111038486,-1000.0,0.00011892,2]
[404405010,1770111038496,-983.42551089,0.00011893,2]
[404405011,1770111038505,-150.0,0.00011897,2]
[404405012,1770111038514,-1000.0,0.00011904,2]
[404405013,1770111038524,-150.0,0.00011907,2]
[404405014,1770111038534,-183.04,0.0001191,3]
[404405015,1770111038543,-1519.04,0.00011913,2]
[404405016,1770111038552,-500.0,0.00012027,2]
[404405017,1770111038562,-500.0,0.00012082,2]
[404405018,1770111038571,-151.0,0.000121,2]
[404405019,1770111038581,-187.78006525,0.00012179,2]
[404405020,1770111038590,-1519.04,0.00012187,2]
[404405021,1770111038599,-1000.0,0.00012329,2]
[404405022,1770111038608,-792.55,0.00012329,2]
[404405023,1770111038618,-150.0134198,0.00012356,2]
[404405024,1770111038627,-334.5472959,0.00012452,2]
[404405025,1770111038636,-1519.04,0.00012461,2]
[404405026,1770111038647,-9418.33,0.00012514,2]
[404405027,1770111038657,-2679.96910447,0.00012674,2]
[404405028,1770111038667,-193732.81044148,0.0001269,2]
[404405029,1770111038676,-194.72792766,0.00012727,2]
[404405030,1770111038685,-1519.04,0.00012735,2]
[404405031,1770111038694,-1613.0,0.00012846,2]
[404405032,1770111038703,-6453.0,0.00012846,2]
[404405033,1770111038712,-1445.0,0.00012849,2]
[404405034,1770111038722,-271.01,0.00012877,2]
[404405035,1770111038731,-912.47182685,0.00012889,2]
[404405036,1770111038740,-8091.42253157,0.00012889,2]
[404405037,1770111038750,-4434.56277461,0.00013,2]
[404405038,1770111038759,-200.0,0.00013,2]
[404405039,1770111038767,-159.0,0.00013,2]
[404405040,1770111038776,-177.18689156,0.00013,2]
[404405041,1770111038785,-1519.04,0.00013008,2]
[404405042,1770111038796,-5354.65944007,0.0001305,2]
[404405043,1770111038805,-355.0,0.00013068,2]
[404405044,1770111038815,-200.0,0.0001313,2]
[404405045,1770111038825,-150.0,0.00013245,2]
[404405046,1770111038834,-374.613885,0.00013245,2]
[404405047,1770111038843,-599.227771,0.00013245,2]
[404405048,1770111038852,-823.841657,0.00013245,2]
[404405049,1770111038862,-1048.455543,0.00013245,2]
[404405050,1770111038875,-1273.069429,0.00013245,2]
[404405051,1770111038884,-1497.683314,0.00013245,2]
[404405052,1770111038894,-1722.2972,0.00013245,2]
[404405053,1770111038903,-1946.911086,0.00013245,2]
[404405054,1770111038911,-2171.524972,0.00013245,2]
[404405055,1770111038922,-200.0,0.00013261,2]
[404405056,1770111038931,-201.93286099,0.00013275,2]
[404405057,1770111038940,-1519.04,0.00013282,2]
[404405058,1770111038949,-200.0,0.00013394,2]
[404405059,1770111038959,-3240.0,0.00013425,2]
[404405060,1770111038968,-500.98,0.00013457,2]
[404405061,1770111038978,-183.76045452,0.000135,2]
[404405062,1770111038987,-200.0,0.00013528,2]
[404405063,1770111038996,-150.0134198,0.00013533,2]
[404405064,1770111039006,-1519.04,0.00013556,2]
[404405065,1770111039015,-500.0,0.00013698,2]
[404405066,1770111039025,-509.06540724,0.00013698,2]
[404405067,1770111039037,-500.0,0.00013698,2]
[404405068,1770111039046,-500.0,0.00013698,2]
[404405069,1770111039056,-500.0,0.00013698,2]
[404405070,1770111039067,-500.0,0.00013698,2]
[404405071,1770111039076,-340.45778603,0.00013698,2]
[404405072,1770111039085,-500.0,0.00013698,2]
[404405073,1770111039094,-500.0,0.00013698,2]
[404405074,1770111039104,-500.0,0.00013698,2]
[404405075,1770111039114,-438.97921379,0.00013698,2]
[404405076,1770111039123,-199.38200897,0.00013698,2]
[404405077,1770111039132,-452.02134495,0.00013698,2]
[404405078,1770111039141,-500.0,0.00013698,2]
[404405079,1770111039151,-500.0,0.00013698,2]
[404405080,1770111039160,-500.0,0.00013698,2]
[404405081,1770111039169,-500.0,0.00013698,2]
[404405082,1770111039179,-378.56522147,0.00013698,2]
[404405083,1770111039188,-500.0,0.00013698,2]
[404405084,1770111039197,-500.0,0.00013698,2]
[404405085,1770111039206,-500.0,0.00013698,2]
[404405086,1770111039216,-500.0,0.00013698,2]
[404405087,1770111039227,-500.0,0.00013698,2]
[404405088,1770111039236,-500.0,0.00013698,2]
[404405089,1770111039246,-500.0,0.00013698,2]
[404405090,1770111039255,-500.0,0.00013698,2]
[404405091,1770111039265,-500.0,0.00013698,2]
[404405092,1770111039275,-222.83714718,0.00013698,2]
[404405093,1770111039286,-500.0,0.00013698,2]
[404405094,1770111039295,-500.0,0.00013698,2]
[404405095,1770111039304,-500.0,0.00013698,2]
[404405096,1770111039314,-500.0,0.00013698,2]
[404405097,1770111039323,-545.58231824,0.00013698,2]
[404405098,1770111039332,-552.61203619,0.00013698,2]
[404405099,1770111039342,-500.0,0.00013698,2]
[404405100,1770111039351,-500.0,0.00013698,2]
[404405101,1770111039360,-500.0,0.00013698,2]
[404405102,1770111039369,-500.0,0.00013698,2]
[404405103,1770111039378,-500.0,0.00013698,2]
[404405104,1770111039388,-500.0,0.00013698,2]
[404405105,1770111039398,-200.0,0.00013699,2]
[404405106,1770111039408,-7243.61,0.00013699,2]
[404405107,1770111039418,-5133.01,0.00013699,2]
[404405108,1770111039427,-500.0,0.00013699,2]
[404405109,1770111039436,-500.0,0.000137,2]
[404405110,1770111039447,-500.0,0.000137,2]
[404405111,1770111039457,-500.0,0.000137,2]
[404405112,1770111039465,-260.20893212,0.000137,2]
[404405113,1770111039474,-500.0,0.000137,2]
[404405114,1770111039484,-500.0,0.000137,2]
[404405115,1770111039493,-500.0,0.000137,2]
[404405116,1770111039502,-2679.96910447,0.00013719,2]
[404405117,1770111039512,-346.92554585,0.00013821,2]
[404405118,1770111039524,-747.8093786,0.00013822,2]
[404405119,1770111039534,-599.60298507,0.00013822,2]
[404405120,1770111039544,-209.40437684,0.00013823,2]
[404405123,1770111039554,-1519.04,0.0001383,2]
[404405125,1770111039564,-151.0,0.00013899,2]
[404405126,1770111039573,-151.0,0.00013899,2]
[404405127,1770111039583,-151.0,0.00013899,2]
[404405128,1770111039593,-151.0,0.00013899,2]
[404405129,1770111039603,-151.0,0.00013899,2]
[404405130,1770111039612,-151.0,0.00013899,2]
[404405131,1770111039621,-151.0,0.00013899,2]
[404405132,1770111039630,-170.853567,0.00013899,2]
[404405133,1770111039640,-185.680257,0.00013899,2]
[404405134,1770111039650,-185.680257,0.00013899,2]
[404405135,1770111039660,-185.680257,0.00013899,2]
[404405136,1770111039669,-185.680257,0.00013899,2]
[404405137,1770111039678,-151.0,0.00013899,2]
[404405138,1770111039688,-151.0,0.00013899,2]
[404405139,1770111039697,-151.0,0.00013899,2]
[404405140,1770111039707,-151.0,0.00013899,2]
[404405141,1770111039717,-151.0,0.00013899,2]
[404405142,1770111039727,-151.0,0.00013899,2]
[404405143,1770111039736,-151.0,0.00013899,2]
[404405144,1770111039746,-333.97,0.00014066,2]
[404405145,1770111039756,-1519.04,0.00014104,2]
[404405146,1770111039765,-500.0,0.0001411,2]
[404405147,1770111039775,-2258.0,0.0001413,2]
[404405148,1770111039784,-9035.0,0.0001413,2]
[404405149,1770111039794,-44956.68910458,0.00014156,2]
[404405150,1770111039805,-1000.0,0.00014248,2]
[404405151,1770111039815,-1000.0,0.00014248,2]
[404405152,1770111039824,-1001.21553048,0.00014248,2]
[404405153,1770111039834,-500.0,0.00014248,2]
[404405154,1770111039844,-217.15233878,0.00014371,2]
[404405155,1770111039855,-1519.04,0.00014378,2]
[404405156,1770111039864,-5133.01,0.00014384,2]
[404405157,1770111039875,-10332.61714049,0.0001439,2]
[404405158,1770111039884,-500.0,0.00014493,2]
[404405159,1770111039895,-1519.04,0.00014652,2]
[404405160,1770111039904,-160.0,0.00014656,2]
[404405161,1770111039913,-150.0134198,0.00014711,2]
[404405162,1770111039923,-361.84102799,0.00014724,2]
[404405163,1770111039933,-2679.96910447,0.00014765,2]
[404405164,1770111039943,-495.7739334,0.00014796,2]
[404405165,1770111039953,-369.98194845,0.00014796,2]
[404405166,1770111039963,-225.18697532,0.00014919,2]
[404405167,1770111039974,-1519.04,0.00014926,2]
[404405168,1770111039984,-151.0,0.00014997,2]
[404405169,1770111039995,-250.0,0.00015,2]
[404405170,1770111040005,-2051.98803165,0.00015,2]
[404405171,1770111040015,-2141.537179,0.00015,14]
[404405172,1770111040031,-7988.62760331,0.00015,2]
[404405173,1770111040041,-1500.0,0.00015,2]
[404405174,1770111040051,-178162.78685449,0.00015,3]
[404405175,1770111040061,-221.5122,0.00015,2]
[404405176,1770111040072,-900.0,0.00015068,2]
[404405177,1770111040082,-5133.01,0.00015068,2]
[404405178,1770111040092,-898.960733,0.00015068,2]
[404405179,1770111040105,-898.960733,0.00015068,2]
[404405180,1770111040115,-898.960733,0.00015068,2]
[404405181,1770111040124,-898.960733,0.00015068,2]
[404405182,1770111040134,-341.83713414,0.00015106,2]
[404405183,1770111040145,-150.0,0.00015157,7]
[404405184,1770111040155,-443.998376,0.00015157,7]
[404405185,1770111040165,-737.996752,0.00015157,7]
[404405186,1770111040176,-1031.995128,0.00015157,7]
[404405187,1770111040186,-1325.993504,0.00015157,7]
[404405188,1770111040197,-1619.99188,0.00015157,7]
[404405189,1770111040206,-1913.990256,0.00015157,7]
[404405190,1770111040216,-2207.988632,0.00015157,7]
[404405191,1770111040225,-2501.987008,0.00015157,7]
[404405192,1770111040235,-2795.985384,0.00015157,7]
[404405193,1770111040247,-359.76179104,0.0001519,2]
[404405194,1770111040258,-1519.04,0.000152,2]
[404405195,1770111040269,-500.98,0.00015239,2]
[404405196,1770111040279,-233.51889341,0.00015467,2]
[404405197,1770111040289,-151.0,0.0001547,2]
[404405198,1770111040299,-151.0,0.0001547,2]
[404405199,1770111040308,-195.963946,0.0001547,2]
[404405200,1770111040318,-195.963946,0.0001547,2]
[404405201,1770111040327,-195.963946,0.0001547,2]
[404405202,1770111040337,-195.963946,0.0001547,2]
[404405203,1770111040346,-2413.772951,0.0001547,2]
[404405204,1770111040356,-2413.772951,0.0001547,2]
[404405205,1770111040367,-2413.772951,0.0001547,2]
[404405206,1770111040377,-2413.772951,0.0001547,2]
[404405207,1770111040387,-1358.40379,0.0001547,2]
[404405208,1770111040398,-287.105834,0.0001547,2]
[404405209,1770111040407,-1358.40379,0.0001547,2]
[404405210,1770111040417,-287.105834,0.0001547,2]
[404405211,1770111040426,-1358.40379,0.0001547,2]
[404405212,1770111040436,-287.105834,0.0001547,2]
[404405213,1770111040446,-1358.40379,0.0001547,2]
[404405214,1770111040455,-287.105834,0.0001547,2]
[404405215,1770111040465,-1519.04834379,0.00015474,2]
[404405216,1770111040476,-1500.0,0.000155,2]
[404405217,1770111040486,-3162.0,0.00015543,2]
[404405218,1770111040496,-12649.0,0.00015543,2]
[404405219,1770111040508,-1000.0,0.00015559,7]
[404405220,1770111040518,-500.0,0.00015644,2]
[404405221,1770111040528,-9673.020717,0.00015653,7]
[404405222,1770111040539,-243.594,0.0001566,2]
[404405223,1770111040549,-2735.056,0.0001566,2]
[404405224,1770111040559,-5133.01,0.00015753,2]
[404405225,1770111040568,-1100.0,0.00015808,2]
[404405226,1770111040578,-18595.0,0.0001581,2]
[404405227,1770111040588,-2679.96910447,0.0001581,2]
[404405228,1770111040598,-500.0,0.00015874,2]
[404405229,1770111040608,-150.0134198,0.00015889,2]
[404405230,1770111040619,-183.18333192,0.000159,2]
[404405231,1770111040629,-1000.0,0.00015918,2]
[404405232,1770111040639,-5000.0,0.0001596,2]
[404405233,1770111040655,-151.0,0.00015997,2]
[404405234,1770111040665,-1986954.52354461,0.00016,4]
[404405235,1770111040675,-160.0,0.00016,3]
[404405236,1770111040684,-1500.0,0.00016,2]
[404405237,1770111040695,-256.701042,0.00016,2]
[404405238,1770111040706,-242.15909246,0.00016015,2]
[404405239,1770111040715,-1500.0,0.00016082,2]
[404405240,1770111040725,-9999.99,0.00016116,2]
[404405241,1770111040734,-29971.20156303,0.000162,5]
[404405242,1770111040744,-614.3,0.00016262,2]
[404405243,1770111040753,-200.0,0.0001634,2]
[404405244,1770111040763,-800.0,0.00016356,2]
[404405245,1770111040774,-150.0,0.00016356,2]
[404405246,1770111040785,-150.0,0.00016356,2]
[404405247,1770111040795,-307.82,0.00016356,2]
[404405248,1770111040806,-775.48,0.00016438,2]
[404405249,1770111040816,-500.0,0.00016438,2]
[404405250,1770111040828,-500.0,0.00016438,2]
[404405251,1770111040839,-330.22332732,0.00016438,2]
[404405252,1770111040849,-500.0,0.00016438,2]
[404405253,1770111040858,-2241.79343891,0.00016438,2]
[404405254,1770111040867,-2241.79343891,0.00016438,2]
[404405255,1770111040877,-2241.79343891,0.00016438,2]
[404405256,1770111040888,-2241.79343891,0.00016438,2]
[404405257,1770111040901,-2241.79343891,0.00016438,2]
[404405258,1770111040910,-2241.79343891,0.00016438,2]
[404405259,1770111040919,-2241.79343891,0.00016438,2]
[404405260,1770111040929,-2241.79343891,0.00016438,2]
[404405261,1770111040938,-2241.79343891,0.00016438,2]
[404405262,1770111040947,-2241.79343891,0.00016438,2]
[404405263,1770111040957,-2241.79343891,0.00016438,2]
[404405264,1770111040967,-2241.79343891,0.00016438,2]
[404405265,1770111040976,-2241.79343891,0.00016438,2]
[404405266,1770111040985,-2241.79343891,0.00016438,2]
[404405267,1770111040995,-2241.79343891,0.00016438,2]
[404405268,1770111041004,-2241.79343891,0.00016438,2]
[404405269,1770111041014,-2241.79343891,0.00016438,2]
[404405270,1770111041024,-2241.79343891,0.00016438,2]
[404405271,1770111041037,-2241.79343891,0.00016438,2]
[404405272,1770111041048,-2241.79343891,0.00016438,2]
[404405273,1770111041058,-2241.79343891,0.00016438,2]
[404405274,1770111041069,-2241.79343891,0.00016438,2]
[404405275,1770111041080,-2241.79343891,0.00016438,2]
[404405276,1770111041091,-2241.79343891,0.00016438,2]
[404405277,1770111041103,-2241.79343891,0.00016438,2]
[404405278,1770111041114,-2241.79343891,0.00016438,2]
[404405279,1770111041125,-2241.79343891,0.00016438,2]
[404405280,1770111041134,-2241.79343891,0.00016438,2]
[404405281,1770111041146,-2241.79343891,0.00016438,2]
[404405282,1770111041155,-2241.79343891,0.00016438,2]
[404405283,1770111041165,-2241.79343891,0.00016438,2]
[404405284,1770111041178,-2241.79343891,0.00016438,2]
[404405285,1770111041189,-2241.79343891,0.00016438,2]
[404405286,1770111041199,-2241.79343891,0.00016438,2]
[404405287,1770111041208,-2241.79343891,0.00016438,2]
[404405288,1770111041218,-2241.79343891,0.00016438,2]
[404405289,1770111041227,-2241.79343891,0.00016438,2]
[404405290,1770111041236,-2241.79343891,0.00016438,2]
[404405291,1770111041246,-2241.79343891,0.00016438,2]
[404405292,1770111041255,-2241.79343891,0.00016438,2]
[404405293,1770111041264,-2241.79343891,0.00016438,2]
[404405294,1770111041273,-2241.79343891,0.00016438,2]
[404405295,1770111041283,-2241.79343891,0.00016438,2]
[404405296,1770111041292,-2241.79343891,0.00016438,2]
[404405297,1770111041302,-2241.79343891,0.00016438,2]
[404405298,1770111041313,-2241.79343891,0.00016438,2]
[404405299,1770111041323,-2241.79343891,0.00016438,2]
[404405300,1770111041332,-2241.79343891,0.00016438,2]
[404405301,1770111041342,-2241.79343891,0.00016438,2]
[404405302,1770111041351,-2241.79343891,0.00016438,2]
[404405303,1770111041361,-2241.79343891,0.00016438,2]
[404405304,1770111041371,-2241.79343891,0.00016438,2]
[404405305,1770111041381,-2241.79343891,0.00016438,2]
[404405306,1770111041392,-2241.79343891,0.00016438,2]
[404405307,1770111041402,-2241.79343891,0.00016438,2]
[404405308,1770111041413,-2241.79343891,0.00016438,2]
[404405309,1770111041423,-2241.79343891,0.00016438,2]
[404405310,1770111041432,-2241.79343891,0.00016438,2]
[404405311,1770111041442,-2241.79343891,0.00016438,2]
[404405312,1770111041451,-2241.79343891,0.00016438,2]
[404405313,1770111041461,-2241.79343891,0.00016438,2]
[404405314,1770111041470,-2241.79343891,0.00016438,2]
[404405315,1770111041480,-2233.78703376,0.00016438,2]
[404405316,1770111041490,-2233.78703376,0.00016438,2]
[404405317,1770111041500,-2233.78703376,0.00016438,2]
[404405318,1770111041511,-2233.78703376,0.00016438,2]
[404405319,1770111041521,-2233.78703376,0.00016438,2]
[404405320,1770111041531,-2233.78703376,0.00016438,2]
[404405321,1770111041541,-2233.78703376,0.00016438,2]
[404405322,1770111041551,-2233.78703376,0.00016438,2]
[404405323,1770111041561,-2233.78703376,0.00016438,2]
[404405324,1770111041571,-2233.78703376,0.00016438,2]
[404405325,1770111041581,-2233.78703376,0.00016438,2]
[404405326,1770111041590,-2233.78703376,0.00016438,2]
[404405327,1770111041601,-2233.78703376,0.00016438,2]
[404405328,1770111041611,-2233.78703376,0.00016438,2]
[404405329,1770111041620,-2233.78703376,0.00016438,2]
[404405330,1770111041630,-2233.78703376,0.00016438,2]
[404405331,1770111041639,-2233.78703376,0.00016438,2]
[404405332,1770111041650,-2233.78703376,0.00016438,2]
[404405333,1770111041659,-2233.78703376,0.00016438,2]
[404405334,1770111041668,-2233.78703376,0.00016438,2]
[404405335,1770111041678,-2233.78703376,0.00016438,2]
[404405336,1770111041689,-2233.78703376,0.00016438,2]
[404405337,1770111041700,-2233.78703376,0.00016438,2]
[404405338,1770111041712,-2233.78703376,0.00016438,2]
[404405339,1770111041721,-2233.78703376,0.00016438,2]
[404405340,1770111041731,-2233.78703376,0.00016438,2]
[404405341,1770111041740,-2233.78703376,0.00016438,2]
[404405342,1770111041750,-2233.78703382,0.00016438,2]
[404405343,1770111041760,-900.0,0.00016438,2]
[404405344,1770111041769,-5133.01,0.00016438,2]
[404405345,1770111041779,-151.0,0.00016438,2]
[404405346,1770111041788,-200.0,0.00016438,2]
[404405347,1770111041797,-908.531434,0.00016438,2]
[404405348,1770111041807,-908.531434,0.00016438,2]
[404405349,1770111041816,-908.531434,0.00016438,2]
[404405350,1770111041826,-908.531434,0.00016438,2]
[404405351,1770111041835,-338.627699,0.00016438,2]
[404405352,1770111041844,-338.627699,0.00016438,2]
[404405353,1770111041853,-338.627699,0.00016438,2]
[404405354,1770111041864,-338.627699,0.00016438,2]
[404405355,1770111041876,-800.0,0.00016438,2]
[404405356,1770111041885,-1000.0,0.00016438,2]
[404405357,1770111041894,-151.0,0.00016438,2]
[404405358,1770111041904,-151.0,0.00016438,2]
[404405359,1770111041913,-151.0,0.00016438,2]
[404405360,1770111041923,-1725.90149928,0.00016444,2]
[404405361,1770111041932,-1084.09055279,0.00016461,2]
[404405362,1770111041943,-1500.0,0.000165,2]
[404405363,1770111041953,-471.47764088,0.00016503,2]
[404405364,1770111041965,-1000.0,0.00016515,2]
[404405365,1770111041975,-360.58,0.00016536,2]
[404405366,1770111041984,-360.32,0.00016536,2]
[404405367,1770111041993,-200.05997466,0.00016546,2]
[404405368,1770111042002,-1316.0,0.00016554,2]
[404405369,1770111042012,-2471.026,0.00016554,2]
[404405370,1770111042022,-616.0,0.00016554,2]
[404405371,1770111042035,-373.07297731,0.00016559,2]
[404405372,1770111042045,-775.47832561,0.00016561,2]
[404405373,1770111042054,-621.78829552,0.00016561,2]
[404405374,1770111042064,-251.11897888,0.00016563,2]
[404405375,1770111042075,-360.83984207,0.000166,2]
[404405376,1770111042085,-1000.0,0.00016712,2]
[404405377,1770111042094,-165.71,0.00016712,2]
[404405378,1770111042106,-592.852551,0.00016712,2]
[404405379,1770111042116,-592.852551,0.00016712,2]
[404405380,1770111042125,-592.852551,0.00016712,2]
[404405381,1770111042135,-592.852551,0.00016712,2]
[404405382,1770111042146,-2679.96910447,0.00016855,2]